bitfinex-derivatives/quotes_BTCF0:USTF0_20241025
["timestamp","ask_amount","ask_price","bid_price","bid_amount"]
[1729897888789,0.10902522,66098.0,66087.0,0.3608]
[1729897889104,0.075761,66099.0,66094.0,1.17]
[1729897889400,0.10902522,66096.0,66094.0,1.17]
[1729897889603,0.10902522,66096.0,66087.0,0.3608]
[1729897889808,0.21805044,66088.0,66087.0,0.3608]
[1729897890193,0.00018891,66088.0,66087.0,1.5308]
[1729897890508,0.10902522,66088.0,66087.0,1.5308]
[1729897890707,0.10902522,66089.0,66087.0,1.5308]
[1729897891000,0.10902522,66089.0,66082.0,0.00226933]
[1729897891001,0.10902522,66088.0,66082.0,0.00226933]
[1729897891202,0.10902522,66083.0,66073.0,0.3608]
[1729897891500,0.29383044,66083.0,66073.0,0.3608]
[1729897892306,0.075781,66082.0,66073.0,0.3608]
[1729897892607,0.21805044,66083.0,66073.0,0.3608]
[1729897892608,0.21805044,66083.0,66074.0,0.07579]
[1729897892901,0.10902522,66082.0,66075.0,1.17]
[1729897893105,0.10902522,66080.0,66075.0,1.17]
[1729897894498,0.10902522,66077.0,66075.0,1.17]
[1729897894893,0.10902522,66080.0,66075.0,1.17]
[1729897895698,0.18480822,66080.0,66075.0,1.17]
[1729897896190,0.3608,66083.0,66075.0,1.17]
[1729897896395,0.436579,66083.0,66075.0,1.17]
[1729897897006,0.10902522,66082.0,66075.0,1.17]
[1729897897809,0.438579,66083.0,66075.0,1.17]
[1729897898004,0.436579,66083.0,66075.0,1.17]
[1729897898203,0.3608,66083.0,66076.0,0.2294]
[1729897898505,0.075774,66088.0,66080.0,0.3608]
[1729897899110,0.075768,66093.0,66087.0,0.3608]
[1729897899403,0.075768,66093.0,66080.0,0.436582]
[1729897899404,0.075768,66093.0,66088.0,0.3608]
[1729897899903,0.10902522,66095.0,66088.0,0.3608]
[1729897899904,0.00019023,66092.0,66088.0,0.3608]
[1729897900204,0.46982522,66090.0,66075.0,1.17]
[1729897900405,0.075784,66079.0,66075.0,1.17]
[1729897900795,0.075784,66079.0,66075.0,1.3994]
[1729897901207,0.3608,66084.0,66075.0,1.3994]
[1729897901400,0.436578,66084.0,66075.0,1.3994]
[1729897901605,0.10902522,66080.0,66075.0,1.3994]
[1729897901805,0.10902522,66080.0,66075.0,1.17]
[1729897902005,0.10902522,66080.0,66076.0,0.2294]
[1729897902404,0.3628,66090.0,66076.0,0.2294]
[1729897902605,0.075774,66088.0,66082.0,0.3608]
[1729897903199,0.10902522,66093.0,66082.0,0.3608]
[1729897903402,0.18479322,66093.0,66082.0,0.3608]
[1729897903603,0.10902522,66089.0,66082.0,0.3608]
[1729897903805,0.18479322,66093.0,66082.0,0.3608]
[1729897904200,0.18479322,66093.0,66088.0,0.3608]
[1729897904401,0.00018336,66092.0,66088.0,0.3608]
[1729897904608,0.46982522,66098.0,66088.0,0.3608]
[1729897904801,0.54558722,66098.0,66088.0,0.3608]
[1729897905004,0.00016375,66097.0,66088.0,0.3608]
[1729897905211,0.11102522,66098.0,66088.0,0.3608]
[1729897905407,0.10902522,66098.0,66088.0,0.3608]
[1729897905609,0.075753,66106.0,66094.0,0.3608]
[1729897905808,0.10902522,66109.0,66095.0,0.075765]
[1729897906011,0.18477422,66109.0,66095.0,0.075765]
[1729897906205,0.075762,66098.0,66094.0,0.3608]
[1729897906410,0.10902522,66104.0,66096.0,0.03782]
[1729897906411,0.07592127,66097.0,66096.0,0.03782]
[1729897906605,0.0758987,66097.0,66096.0,0.03782]
[1729897906907,0.075763,66097.0,66096.0,0.03782]
[1729897908621,0.075781,66082.0,66080.0,0.2294]
[1729897908813,0.3608,66081.0,66080.0,0.2294]
[1729897909513,0.436581,66081.0,66080.0,0.2294]
[1729897909814,0.436581,66081.0,66070.0,1.245793]
[1729897909815,0.3608,66081.0,66078.0,0.2294]
[1729897910412,0.3608,66087.0,66079.0,0.3608]
[1729897910618,0.3608,66087.0,66078.0,0.2294]
[1729897910911,0.00011349,66086.0,66078.0,0.2294]
[1729897911102,0.10902522,66094.0,66078.0,0.2294]
[1729897911103,0.3608,66089.0,66081.0,0.075781]
[1729897911307,0.00016129,66088.0,66082.0,0.1515]
[1729897911515,0.3608,66089.0,66082.0,0.1515]
[1729897912315,0.3608,66083.0,66082.0,0.1515]
[1729897912616,0.3608,66083.0,66078.0,0.2294]
[1729897912919,0.436579,66083.0,66078.0,0.2294]
[1729897913114,0.07578,66082.0,66078.0,0.2294]
[1729897913518,0.47182522,66083.0,66078.0,0.2294]
[1729897913713,0.47182522,66083.0,66072.0,0.436591]
[1729897913714,0.3608,66083.0,66072.0,0.436591]
[1729897914013,0.07578,66082.0,66079.0,0.2294]
[1729897914204,0.07578,66082.0,66080.0,0.0121]
[1729897915012,0.3628,66083.0,66080.0,0.0121]
[1729897915219,0.3608,66083.0,66080.0,0.0121]
[1729897915818,0.00019218,66082.0,66080.0,0.0121]
[1729897916015,0.43658,66083.0,66080.0,0.0121]
[1729897918110,0.43658,66083.0,66080.0,0.0021]
[1729897918513,0.075781,66082.0,66080.0,0.0021]
[1729897918825,0.075781,66081.0,66080.0,0.0021]
[1729897920126,0.436581,66081.0,66080.0,0.0021]
[1729897921216,0.43671075,66081.0,66080.0,0.0021]
[1729897921418,0.436581,66081.0,66080.0,0.0021]
[1729897922814,0.002,66084.0,66083.0,0.075779]
[1729897923019,0.3608,66085.0,66084.0,0.075778]
[1729897923020,0.00212,66085.0,66084.0,0.075778]
[1729897923218,0.3608,66097.0,66084.0,0.075778]
[1729897923219,0.36288001,66097.0,66096.0,0.075764]
[1729897923521,0.3608,66097.0,66096.0,1.17]
[1729897923722,0.36224,66105.0,66099.0,0.07576]
[1729897924018,0.3608,66105.0,66099.0,0.07576]
[1729897924427,0.10902522,66109.0,66098.0,0.06044397]
[1729897924627,0.36216,66111.0,66103.0,0.075756]
[1729897924824,0.10902522,66108.0,66104.0,0.22052]
[1729897925218,0.10902522,66108.0,66105.0,0.03781]
[1729897925417,0.00144,66111.0,66109.0,0.075749]
[1729897925615,0.36216,66117.0,66109.0,0.075749]
[1729897925819,0.3608,66119.0,66113.0,0.075745]
[1729897926921,0.3608,66119.0,66110.0,0.22052]
[1729897927116,0.3608,66119.0,66110.0,0.28096397]
[1729897927728,0.3608,66119.0,66110.0,0.35671197]
[1729897927921,0.3608,66119.0,66110.0,0.13619197]
[1729897928122,0.00018142,66118.0,66111.0,0.28092397]
[1729897928325,0.36216,66119.0,66111.0,0.22048]
[1729897928627,0.36220001,66125.0,66116.0,0.3608]
[1729897928932,0.10902522,66121.0,66117.0,0.06044397]
[1729897929131,0.3608,66119.0,66115.0,0.06044397]
[1729897929431,0.3608,66119.0,66107.0,0.43701327]
[1729897929432,0.3608,66119.0,66116.0,1.17]
[1729897929632,0.10902522,66117.0,66116.0,1.17]
[1729897929833,0.10902522,66116.0,66112.0,0.22048]
[1729897930022,0.3608,66113.0,66112.0,0.22048]
[1729897930424,0.3608,66113.0,66107.0,0.3608]
[1729897930829,0.10902522,66107.0,66105.0,0.03781]
[1729897931032,0.3608,66106.0,66105.0,0.03781]
[1729897933833,0.36216,66113.0,66105.0,0.03781]
[1729897934021,0.3608,66120.0,66110.0,0.21805044]
[1729897934329,0.3608,66120.0,66106.0,0.06044397]
[1729897934836,0.10902522,66108.0,66106.0,0.06044397]
[1729897935019,0.10902522,66108.0,66105.0,0.03781]
[1729897935225,0.46982522,66106.0,66105.0,0.03781]
[1729897935428,0.46982522,66106.0,66089.0,0.38188]
[1729897935429,0.075762,66099.0,66089.0,0.38188]
[1729897935625,0.46982522,66106.0,66089.0,0.38188]
[1729897935626,0.3608,66090.0,66089.0,0.38188]
[1729897936022,0.3608,66090.0,66085.0,0.00226923]
[1729897936236,0.075775,66087.0,66085.0,0.00226923]
[1729897937230,0.1546,66089.0,66085.0,0.00226923]
[1729897939431,0.075775,66087.0,66085.0,0.00226923]
[1729897940731,0.00013828,66086.0,66077.0,0.21805044]
[1729897940930,0.3024,66089.0,66077.0,0.21805044]
[1729897940931,0.3608,66078.0,66077.0,0.21805044]
[1729897941633,0.3608,66078.0,66002.0,0.15046397]
[1729897941634,0.7216,66078.0,66072.0,0.04515984]
[1729897941823,0.7216,66078.0,66071.0,0.04515984]
[1729897942025,0.3608,66072.0,66068.0,1.21603984]
[1729897942227,0.3608,66072.0,66068.0,1.17]
[1729897942637,0.3608,66072.0,66066.0,0.04515984]
[1729897943137,0.3608,66072.0,66067.0,0.21805044]
[1729897943834,0.3608,66072.0,66065.0,1.42783984]
[1729897943835,0.3608,66072.0,66065.0,1.17076]
[1729897944130,0.3608,66072.0,66065.0,1.17]
[1729897945040,0.3608,66066.0,66061.0,0.0474299]
[1729897945229,0.3608,66066.0,66061.0,0.00227006]
[1729897945425,0.3608,66066.0,66064.0,0.21805044]
[1729897946128,0.3769441,66072.0,66064.0,0.21805044]
[1729897946325,0.3608,66072.0,66064.0,0.21805044]
[1729897946830,0.3608,66065.0,66064.0,0.21805044]
[1729897947237,0.3608,66065.0,66062.0,0.21196]
[1729897948332,0.3608,66065.0,66064.0,0.14557058]
[1729897949241,0.3608,66065.0,66062.0,0.21196]
[1729897949933,0.3608,66065.0,66061.0,0.00227006]
[1729897950131,0.0758,66063.0,66061.0,0.00227006]
[1729897950333,0.36216,66065.0,66061.0,0.00227006]
[1729897950537,0.3608,66065.0,66061.0,0.00227006]
[1729897950741,0.436599,66065.0,66061.0,0.00227006]
[1729897950943,0.436599,66065.0,66059.0,0.00076]
[1729897951140,0.00012179,66064.0,66063.0,0.14557058]
[1729897951338,0.3608,66065.0,66059.0,0.075804]
[1729897951339,0.36216,66065.0,66059.0,0.075804]
[1729897951537,0.3608,66065.0,66063.0,0.14557058]
[1729897951742,0.3608,66065.0,66064.0,0.21196]
[1729897951944,0.3608,66065.0,66064.0,1.12196]
[1729897952148,0.3608,66065.0,66064.0,0.91]
[1729897952842,0.436599,66065.0,66059.0,0.14557058]
[1729897953238,0.3608,66065.0,66059.0,0.14557058]
[1729897953547,0.3608,66065.0,66064.0,0.14557058]
[1729897953737,0.3608,66065.0,66059.0,0.14557058]
[1729897954241,0.436598,66065.0,66055.0,0.35753058]
[1729897954446,0.3608,66065.0,66055.0,0.35753058]
[1729897954941,0.0758,66063.0,66055.0,0.14557058]
[1729897955143,0.3608,66057.0,66055.0,0.35757058]
[1729897955350,0.3608,66057.0,66055.0,0.14557058]
[1729897955545,0.3608,66057.0,66055.0,0.35757058]
[1729897956448,0.00012625,66056.0,66055.0,0.19641018]
[1729897956941,0.00012625,66056.0,66055.0,0.65057018]
[1729897957142,0.00012625,66056.0,66055.0,0.66616]
[1729897957543,0.00012625,66056.0,66055.0,0.81173058]
[1729897958251,0.3608,66058.0,66054.0,0.91076]
[1729897958441,0.00016007,66057.0,66054.0,0.91]
[1729897958641,0.00014731,66056.0,66055.0,0.03784]
[1729897958835,0.00013131,66056.0,66055.0,0.03784]
[1729897959144,0.438046,66058.0,66055.0,0.03784]
[1729897959442,0.3608,66058.0,66056.0,0.14557058]
[1729897959749,0.075803,66061.0,66056.0,0.14557058]
[1729897959948,0.36228,66065.0,66060.0,0.14557058]
[1729897960138,0.00017702,66064.0,66063.0,0.14557058]
[1729897960338,0.3608,66065.0,66055.0,0.39864]
[1729897960339,0.075802,66062.0,66058.0,0.14557058]
[1729897960536,0.3608,66059.0,66056.0,0.24863984]
[1729897960739,0.075795,66063.0,66056.0,0.20348]
[1729897960943,0.075798,66061.0,66056.0,0.20348]
[1729897961156,0.36216,66065.0,66056.0,0.20348]
[1729897961448,0.3608,66059.0,66056.0,0.20348]
[1729897961647,0.3608,66059.0,66055.0,0.03784]
[1729897961949,0.3608,66059.0,66056.0,0.20348]
[1729897962153,0.00011636,66058.0,66056.0,0.20348]
[1729897962446,0.07278529,66069.0,66056.0,0.20348]
[1729897962447,0.3608,66081.0,66070.0,0.075786]
[1729897962644,0.3608,66081.0,66068.0,0.14557058]
[1729897962848,0.37522262,66081.0,66068.0,0.14557058]
[1729897963046,0.3608,66081.0,66073.0,0.14557058]
[1729897963248,0.36176,66090.0,66073.0,0.14557058]
[1729897963249,0.36176,66090.0,66078.0,0.14557058]
[1729897963463,0.01421736,66093.0,66088.0,0.14557058]
[1729897964048,0.07278529,66102.0,66088.0,0.14557058]
[1729897964242,0.075753,66100.0,66088.0,0.22133658]
[1729897964436,0.075753,66100.0,66092.0,0.04520095]
[1729897964642,0.075753,66100.0,66094.0,0.04520095]
[1729897964841,0.075753,66100.0,66093.0,0.04520095]
[1729897965045,0.3618,66103.0,66096.0,0.22132758]
[1729897965350,0.43358529,66103.0,66098.0,0.04520095]
[1729897965553,0.43358529,66103.0,66100.0,0.04520095]
[1729897965744,0.43358529,66103.0,66101.0,0.04520095]
[1729897965939,0.07278529,66112.0,66099.0,0.70252095]
[1729897966246,0.14852229,66113.0,66099.0,0.70252095]
[1729897966247,0.46991887,66110.0,66106.0,0.04520095]
[1729897966443,0.46991887,66110.0,66104.0,0.04520095]
[1729897966638,0.54565987,66110.0,66103.0,0.04520095]
[1729897966843,0.10911887,66105.0,66100.0,0.04520095]
[1729897967149,0.36184001,66110.0,66101.0,0.04520095]
[1729897967449,0.075754,66098.0,66097.0,0.20344]
[1729897968451,0.075756,66097.0,66094.0,0.20344]
[1729897968663,0.3608,66095.0,66094.0,0.20344]
[1729897969649,0.43667968,66095.0,66094.0,0.2034]
[1729897969854,0.436558,66095.0,66094.0,0.2034]
[1729897970145,0.436558,66095.0,66094.0,0.279159]
[1729897970146,0.3608,66095.0,66094.0,0.279159]
[1729897970448,0.10911887,66109.0,66094.0,0.2034]
[1729897970652,0.3608,66096.0,66094.0,0.2034]
[1729897971150,0.3608,66096.0,66086.0,0.04520095]
[1729897971340,0.3608,66090.0,66087.0,0.2034]
[1729897971650,0.436564,66090.0,66087.0,0.2034]
[1729897972150,0.436564,66090.0,66088.0,0.2034]
[1729897972455,0.3608,66090.0,66088.0,0.2034]
[1729897972648,0.3618,66096.0,66089.0,0.21823774]
[1729897972849,0.3608,66096.0,66089.0,0.21823774]
[1729897973051,0.3608,66096.0,66088.0,0.5642]
[1729897973052,0.075749,66103.0,66094.0,0.21823774]
[1729897973450,0.075751,66102.0,66094.0,0.21823774]
[1729897973663,0.075751,66102.0,66091.0,0.075762]
[1729897973950,0.075751,66102.0,66091.0,0.12096295]
[1729897974153,0.075751,66102.0,66088.0,0.42163774]
[1729897974154,0.10911887,66102.0,66090.0,0.04520095]
[1729897974347,0.075757,66096.0,66088.0,0.24860095]
[1729897974657,0.10911887,66096.0,66086.0,0.04520095]
[1729897974860,0.075765,66089.0,66083.0,0.91]
[1729897975154,0.10911887,66096.0,66083.0,0.91]
[1729897975155,0.10911887,66096.0,66084.0,0.2034]
[1729897975347,0.075762,66091.0,66083.0,0.91]
[1729897975549,0.075757,66096.0,66084.0,0.195]
[1729897975744,0.075761,66093.0,66084.0,0.195]
[1729897976055,0.075761,66093.0,66083.0,0.91]
[1729897976056,0.3608,66093.0,66083.0,0.91]
[1729897976253,0.075761,66092.0,66084.0,0.195]
[1729897977356,0.075761,66092.0,66085.0,0.195]
[1729897977655,0.3608,66093.0,66089.0,0.21823774]
[1729897979253,0.36176,66099.0,66089.0,0.26343869]
[1729897979456,0.36176,66099.0,66086.0,0.5558]
[1729897979457,0.3608,66099.0,66097.0,0.21823774]
[1729897979659,0.3608,66099.0,66093.0,0.3608]
[1729897980759,0.3608,66099.0,66097.0,0.21823774]
[1729897981355,0.3608,66099.0,66093.0,0.40600095]
[1729897981552,0.075759,66094.0,66093.0,0.3608]
[1729897981749,0.36176,66099.0,66093.0,0.3608]
[1729897981952,0.075758,66096.0,66093.0,0.3608]
[1729897982160,0.3608,66099.0,66086.0,0.24088972]
[1729897982161,0.075759,66094.0,66086.0,0.24088972]
[1729897982366,0.075759,66094.0,66086.0,0.195]
[1729897982558,0.075755,66098.0,66087.0,0.195]
[1729897982766,0.36176,66099.0,66087.0,0.195]
[1729897982951,0.3608,66099.0,66087.0,0.195]
[1729897983260,0.075757,66096.0,66088.0,0.04512972]
[1729897983672,0.075757,66096.0,66088.0,0.26336746]
[1729897983862,0.36176,66099.0,66088.0,0.15424859]
[1729897984168,0.3608,66092.0,66083.0,0.91084]
[1729897984373,0.3608,66092.0,66082.0,0.04512972]
[1729897984374,0.3608,66084.0,66082.0,0.04512972]
[1729897984555,0.075779,66077.0,66075.0,0.195]
[1729897984756,0.43658,66076.0,66075.0,0.195]
[1729897985067,0.00016493,66075.0,66063.0,0.04512972]
[1729897985266,0.3608,66070.0,66061.0,0.382]
[1729897985461,0.3608,66070.0,66062.0,1.105]
[1729897985763,0.075789,66068.0,66062.0,1.105]
[1729897985963,0.36176,66070.0,66066.0,0.21823774]
[1729897986164,0.3608,66070.0,66066.0,0.21823774]
[1729897986364,0.36176,66076.0,66069.0,0.075788]
[1729897986567,0.3608,66076.0,66072.0,0.21823774]
[1729897986759,0.3608,66076.0,66069.0,0.075788]
[1729897986760,0.3608,66076.0,66069.0,0.075787]
[1729897987062,0.3608,66076.0,66071.0,0.21823774]
[1729897987462,0.36188,66078.0,66071.0,0.21823774]
[1729897987668,0.075776,66079.0,66071.0,0.21823774]
[1729897987868,0.36176,66081.0,66071.0,0.26336746]
[1729897988173,0.075776,66080.0,66072.0,0.04512972]
[1729897988374,0.075776,66080.0,66074.0,0.40592972]
[1729897988584,0.3618,66081.0,66074.0,0.40592972]
[1729897988585,0.001,66081.0,66079.0,0.10911887]
[1729897988761,0.07577,66085.0,66079.0,0.04512972]
[1729897988959,0.3608,66083.0,66078.0,0.04512972]
[1729897989157,0.075781,66075.0,66073.0,0.04512972]
[1729897989368,0.3608,66083.0,66072.0,0.04512972]
[1729897989369,0.075784,66073.0,66072.0,0.04512972]
[1729897989569,0.075784,66073.0,66072.0,0.195]
[1729897990462,0.3608,66074.0,66062.0,0.95512972]
[1729897990776,0.075789,66068.0,66063.0,0.195]
[1729897990971,0.075785,66072.0,66065.0,0.04512972]
[1729897991369,0.3608,66068.0,66065.0,0.04512972]
[1729897991573,0.07579,66067.0,66065.0,0.04512972]
[1729897991765,0.075792,66065.0,66063.0,0.24012972]
[1729897991962,0.075792,66065.0,66063.0,0.195]
[1729897992967,0.075795,66063.0,66061.0,0.91]
[1729897993165,0.3608,66068.0,66054.0,0.04512972]
[1729897993166,0.075803,66056.0,66054.0,0.04512972]
[1729897993373,0.3608,66061.0,66053.0,0.04740007]
[1729897993570,0.436597,66061.0,66053.0,0.04740007]
[1729897993772,0.436597,66061.0,66054.0,0.91]
[1729897994081,0.3608,66061.0,66054.0,0.91]
[1729897994266,0.3608,66055.0,66054.0,0.91]
[1729897994768,0.3608,66055.0,66054.0,1.12823774]
[1729897995169,0.3608,66055.0,66051.0,0.04512972]
[1729897995373,0.3608,66055.0,66040.0,0.21823774]
[1729897995374,0.075815,66046.0,66040.0,0.21823774]
[1729897995576,0.10911887,66050.0,66043.0,0.91]
[1729897996175,0.18493487,66044.0,66043.0,0.91]
[1729897996875,0.56348672,66044.0,66034.0,0.04512972]
[1729897997072,0.075834,66029.0,66021.0,0.06020535]
[1729897997272,0.075834,66029.0,65991.0,0.13333897]
[1729897997273,0.07585,66015.0,66006.0,0.06020535]
[1729897997466,0.10911887,66009.0,66007.0,0.10618037]
[1729897997668,0.10911887,66008.0,66007.0,0.10618037]
[1729897997880,0.10911887,66008.0,66000.0,0.7058]
[1729897998078,0.3608,66009.0,66001.0,0.91]
[1729897998079,0.10911887,66002.0,66001.0,0.91]
[1729897998272,0.075866,66001.0,66000.0,0.705]
[1729897998779,0.530426,66001.0,66000.0,0.705]
[1729897999370,1.16367887,66001.0,65981.0,0.3608]
[1729897999670,0.075891,65979.0,65978.0,0.00973931]
[1729897999866,0.18515793,65979.0,65978.0,0.00973931]
[1729898000078,0.18515793,65979.0,65954.0,0.21823774]
[1729898000079,1.16392967,65979.0,65954.0,0.21823774]
[1729898000289,1.16392967,65979.0,65945.0,0.1493]
[1729898000290,0.075919,65956.0,65950.0,0.3608]
[1729898000472,0.3608,65955.0,65950.0,0.3608]
[1729898000779,0.3608,65955.0,65945.0,0.22696497]
[1729898000780,0.075923,65951.0,65945.0,0.22696497]
[1729898000977,0.075923,65951.0,65943.0,0.46925452]
[1729898001276,0.00392346,65950.0,65948.0,0.21823774]
[1729898001476,0.00379,65950.0,65949.0,0.57903774]
[1729898001785,0.3608,65970.0,65949.0,0.90973811]
[1729898002075,0.3608,65970.0,65965.0,0.10618037]
[1729898002469,0.00378,65969.0,65966.0,0.21823774]
[1729898002673,0.00378,65969.0,65967.0,0.3608]
[1729898002874,0.3608,65990.0,65968.0,1.37698037]
[1729898003076,0.3608,66009.0,65989.0,0.10618037]
[1729898003284,0.3608,66009.0,65987.0,0.3608]
[1729898003285,0.07586,66007.0,66000.0,0.10618037]
[1729898003471,0.3608,66009.0,66006.0,0.10618037]
[1729898003472,0.36196,66009.0,66006.0,0.10618037]
[1729898003674,0.00378,66008.0,66006.0,0.10618037]
[1729898003883,0.00378,66008.0,66007.0,0.10618037]
[1729898004180,0.3608,66023.0,66007.0,0.46698037]
[1729898004387,0.3608,66017.0,66012.0,0.10618037]
[1729898004584,0.3608,66015.0,66008.0,0.91]
[1729898004772,0.3608,66015.0,65980.0,0.3608]
[1729898004773,0.5292629,66009.0,65980.0,0.3608]
[1729898004974,0.45444,66016.0,65980.0,0.46698037]
[1729898004975,0.3608,65991.0,65980.0,0.46698037]
[1729898005174,0.07588,65989.0,65980.0,0.3608]
[1729898005386,0.1805,66014.0,65969.0,0.3132]
[1729898005387,0.3608,65982.0,65969.0,0.156]
[1729898005588,0.3608,65971.0,65969.0,0.26218037]
[1729898005783,0.3608,65971.0,65953.0,0.23408]
[1729898005985,0.1684629,65957.0,65951.0,0.3608]
[1729898006173,0.1684629,65957.0,65939.0,1.2108]
[1729898006377,0.1684629,65972.0,65956.0,0.46698037]
[1729898006678,0.3608,65974.0,65968.0,0.10618037]
[1729898006873,0.3608,65974.0,65956.0,0.3608]
[1729898006874,0.1684629,65968.0,65956.0,0.3608]
[1729898007181,0.3608,65974.0,65954.0,0.23408]
[1729898007182,0.1684629,65961.0,65954.0,0.23408]
[1729898007377,0.1684629,65961.0,65953.0,0.10618037]
[1729898007890,0.1684629,65955.0,65945.0,0.85]
[1729898008076,0.1684629,65955.0,65947.0,0.10618037]
[1729898008275,0.3608,65958.0,65954.0,0.10618037]
[1729898008484,0.3608,65958.0,65957.0,0.10618037]
[1729898008875,0.3608,65958.0,65949.0,0.59496]
[1729898009081,0.3608,65958.0,65950.0,0.10618037]
[1729898009279,0.075876,65992.0,65949.0,0.3608]
[1729898009280,0.3608,65971.0,65957.0,0.10618037]
[1729898009486,0.3608,65971.0,65962.0,0.10618037]
[1729898009677,0.1684629,65965.0,65949.0,0.3608]
[1729898009873,0.5292629,65959.0,65951.0,0.10618037]
[1729898010379,0.0001399,65958.0,65951.0,0.10618037]
[1729898010574,0.3608,65959.0,65950.0,0.85076]
[1729898010575,0.00120001,65959.0,65958.0,0.10618037]
[1729898010780,0.3608,65974.0,65958.0,0.10618037]
[1729898010982,0.00017451,65973.0,65964.0,0.10618037]
[1729898011288,0.36204,65974.0,65965.0,0.85]
[1729898011487,0.1684629,65965.0,65949.0,0.36156]
[1729898011678,0.1684629,65965.0,65955.0,0.10618037]
[1729898011986,0.1684629,65965.0,65956.0,0.85]
[1729898012191,0.1684629,65965.0,65956.0,0.97728037]
[1729898012388,0.1684629,65966.0,65956.0,0.97728037]
[1729898012583,0.00124,65967.0,65964.0,0.10618037]
[1729898012782,0.36196,65974.0,65966.0,0.10618037]
[1729898012983,0.36196,65974.0,65964.0,0.3608]
[1729898012984,0.1684629,65971.0,65964.0,0.3608]
[1729898013293,0.2443709,65965.0,65957.0,0.00076]
[1729898013497,0.2443709,65965.0,65956.0,0.02186]
[1729898013702,0.36196,65967.0,65959.0,0.10618037]
[1729898013881,0.3608,65967.0,65962.0,0.10618037]
[1729898014079,0.3608,65967.0,65957.0,0.1537]
[1729898014080,0.1684629,65965.0,65957.0,0.1537]
[1729898014280,0.075911,65962.0,65957.0,0.1537]
[1729898014605,0.3608,65967.0,65956.0,0.0211]
[1729898014606,0.1684629,65958.0,65956.0,0.0211]
[1729898014889,0.00120001,65961.0,65956.0,0.3819]
[1729898015188,0.3608,65974.0,65966.0,0.10618037]
[1729898015376,0.3608,65974.0,65973.0,0.10618037]
[1729898015784,0.00084,65980.0,65973.0,0.10618037]
[1729898015985,0.36168,65989.0,65979.0,0.10618037]
[1729898016186,0.36168,65989.0,65985.0,0.10618037]
[1729898016587,0.01446722,66011.0,65988.0,0.46698037]
[1729898016588,0.1684629,66003.0,65988.0,0.46698037]
[1729898016787,0.0008,65998.0,65988.0,0.436681]
[1729898017095,0.436669,65998.0,65992.0,0.10618037]
[1729898017394,0.075869,65998.0,65992.0,0.10618037]
[1729898017581,0.075871,65997.0,65992.0,0.10618037]
[1729898017782,0.1684629,65992.0,65988.0,0.3608]
[1729898017991,0.1684629,65992.0,65978.0,0.3608]
[1729898017992,0.3608,65989.0,65978.0,0.3608]
[1729898018288,0.0001608,65988.0,65980.0,0.075889]
[1729898018490,0.00014134,65987.0,65979.0,0.1532]
[1729898018695,0.00014134,65987.0,65969.0,0.3608]
[1729898018696,0.3608,65980.0,65957.0,0.5186]
[1729898018895,0.15168025,65965.0,65960.0,0.3874]
[1729898019097,0.15168025,65971.0,65960.0,0.1532]
[1729898019389,0.15168025,65971.0,65961.0,0.2342]
[1729898019588,0.3608,65967.0,65961.0,0.2342]
[1729898020079,0.15168025,65971.0,65962.0,0.85]
[1729898020590,0.3608,65968.0,65962.0,0.85]
[1729898021091,0.3608,65974.0,65962.0,0.85]
[1729898021092,0.3608,65974.0,65965.0,0.3608]
[1729898021281,0.3608,65984.0,65973.0,0.3608]
[1729898021589,0.15168025,65986.0,65975.0,0.075895]
[1729898021785,0.15168025,65978.0,65974.0,0.22608359]
[1729898022085,0.15168025,65978.0,65965.0,0.3608]
[1729898022086,0.15168025,65978.0,65966.0,0.075906]
[1729898022489,0.3608,65973.0,65965.0,0.3608]
[1729898022787,0.00076,65986.0,65972.0,0.3608]
[1729898022988,0.51248025,65999.0,65972.0,0.3608]
[1729898022989,0.51248025,65999.0,65981.0,0.436688]
[1729898023290,0.15168025,65992.0,65981.0,0.436688]
[1729898023786,0.15168025,65985.0,65981.0,0.3608]
[1729898024379,0.15168025,65991.0,65977.0,0.3608]
[1729898024580,0.15168025,65991.0,65985.0,0.3608]
[1729898024889,0.15168025,65992.0,65985.0,0.3608]
[1729898024890,0.3033605,65986.0,65985.0,0.3608]
[1729898025391,0.15168025,65986.0,65985.0,0.3608]
[1729898025579,0.3033605,65992.0,65985.0,0.3608]
[1729898026295,0.3033605,65992.0,65986.0,0.85]
[1729898026992,0.3033605,65992.0,65984.0,0.3608]
[1729898026993,0.15168025,65986.0,65984.0,0.3608]
[1729898027187,0.075888,65982.0,65978.0,0.1465]
[1729898027385,0.51324025,65985.0,65978.0,0.1465]
[1729898027587,0.51248025,65985.0,65978.0,0.1465]
[1729898028082,0.15168025,65979.0,65978.0,0.1465]
[1729898028282,0.15168025,65980.0,65978.0,0.1465]
[1729898029296,0.51328025,65985.0,65979.0,0.3608]
[1729898029297,0.0008,65985.0,65979.0,0.3608]
[1729898029486,0.36156,65992.0,65979.0,0.3608]
[1729898029688,0.15168025,65987.0,65979.0,0.3608]
[1729898029890,0.15168025,65980.0,65979.0,0.3608]
[1729898030087,0.15168025,65980.0,65978.0,0.1465]
[1729898030289,0.00018099,65979.0,65978.0,0.1465]
[1729898030483,0.00018424,65979.0,65973.0,0.2444]
[1729898030686,0.00018424,65979.0,65967.0,0.85]
[1729898030687,0.15168025,65973.0,65967.0,0.00104]
[1729898030889,0.075912,65962.0,65947.0,0.5084]
[1729898031089,0.36093196,65961.0,65947.0,0.5084]
[1729898031287,0.3608,65961.0,65948.0,0.85]
[1729898031484,0.36156,65968.0,65951.0,0.075923]
[1729898031788,0.36156,65968.0,65948.0,1.07763798]
[1729898031789,0.075904,65968.0,65952.0,0.22709889]
[1729898031988,0.075904,65968.0,65953.0,0.2434]
[1729898032292,0.075904,65968.0,65953.0,0.6042]
[1729898032683,0.00378,65967.0,65953.0,0.6042]
[1729898033197,0.075917,65957.0,65953.0,0.3608]
[1729898033389,0.15168025,65966.0,65953.0,0.3608]
[1729898033585,0.15168025,65959.0,65953.0,0.3608]